bitfinex/quotes_SOLUSD_20251031
["timestamp","ask_amount","ask_price","bid_price","bid_amount"]
[1761954367447,0.7,187.96,187.93,15.77994727]
[1761954367668,3.06214156,187.97,187.93,15.10994727]
[1761954367855,0.7,187.95,187.93,15.10994727]
[1761954368363,3.76214156,187.95,187.91,9.78882769]
[1761954368573,3.06214156,187.93,187.88,5.32228148]
[1761954368761,3.06214156,187.93,187.89,9.78882769]
[1761954368960,0.7,187.92,187.89,9.78882769]
[1761954370261,3.76214156,187.92,187.88,9.78882769]
[1761954370447,3.06214156,187.9,187.87,5.3227745]
[1761954370849,3.76214156,187.9,187.87,5.9927745]
[1761954371157,0.7,187.9,187.87,5.9927745]
[1761954372766,0.7,187.9,187.87,5.3227745]
[1761954373365,0.7,187.9,187.87,5.9927745]
[1761954373562,3.76214156,187.9,187.87,5.3227745]
[1761954373765,3.76214156,187.9,187.87,9.78882769]
[1761954374264,3.76214156,187.9,187.87,10.45882769]
[1761954374472,0.7,187.9,187.87,10.45882769]
[1761954374674,3.76214156,187.91,187.87,10.45882769]
[1761954377183,3.76214156,187.91,187.87,15.78158348]
[1761954377677,3.06214156,187.9,187.87,15.78158348]
[1761954378375,0.7,187.94,187.88,3.73214156]
[1761954378563,4.69409157,188.0,187.9,3.06214156]
[1761954378879,4.69409157,188.0,187.9,0.69]
[1761954378880,3.06214156,187.95,187.9,0.69]
[1761954379265,0.72,187.94,187.9,6.01171483]
[1761954379768,0.72,187.94,187.9,5.32171483]
[1761954379974,3.06214156,187.92,187.88,39.19]
[1761954380480,3.78214156,187.92,187.88,44.51249694]
[1761954380790,3.78214156,187.92,187.88,43.82249694]
[1761954381095,3.78214156,187.92,187.89,0.69]
[1761954382178,3.78214156,187.92,187.89,6.01218804]
[1761954382356,3.78214156,187.94,187.89,6.01218804]
[1761954382681,3.78214156,187.94,187.9,0.69]
[1761954383257,3.78214156,187.94,187.9,6.0117268]
[1761954385494,3.78214156,187.94,187.91,0.67]
[1761954386378,3.06214156,187.94,187.91,0.67]
[1761954386585,3.06214156,187.94,187.89,3.06214156]
[1761954386796,3.78214156,187.93,187.88,9.78882769]
[1761954386993,3.06214156,187.91,187.89,5.32226302]
[1761954387583,0.72,187.92,187.89,5.32226302]
[1761954387786,3.06214156,187.91,187.89,5.32226302]
[1761954388091,3.06214156,187.91,187.88,0.67]
[1761954389596,0.72,187.92,187.88,0.67]
[1761954389792,3.06214156,187.91,187.88,0.67]
[1761954389978,3.06214156,187.91,187.88,5.99240494]
[1761954390391,3.78214156,187.91,187.88,5.99240494]
[1761954391594,3.06214156,187.92,187.88,5.99240494]
[1761954392696,3.78214156,187.92,187.88,5.99240494]
[1761954393202,3.06214156,187.92,187.88,5.99240494]
[1761954393495,3.78214156,187.92,187.88,5.99240494]
[1761954393671,3.78214156,187.92,187.89,0.67]
[1761954395589,3.78214156,187.92,187.88,5.99240494]
[1761954395991,0.72,187.91,187.88,5.99240494]
[1761954397182,3.06214156,187.9,187.87,5.32282961]
[1761954397592,0.72,187.89,187.87,5.32282961]
[1761954397789,3.06214156,187.9,187.87,5.99282961]
[1761954398501,3.78214156,187.91,187.88,0.67]
[1761954398884,3.78214156,187.91,187.87,5.99282961]
[1761954399394,3.78214156,187.91,187.88,5.99253698]
[1761954404312,0.72,187.94,187.89,0.67]
[1761954404517,3.97960119,187.93,187.89,0.67]
[1761954404715,0.72,187.94,187.9,3.06214156]
[1761954405216,0.72,187.94,187.91,0.67]
[1761954406518,0.72,187.94,187.91,5.99159884]
[1761954407393,3.98347855,187.93,187.91,5.99159884]
[1761954407607,0.72,187.94,187.91,5.99159884]
[1761954407914,3.98347855,187.93,187.91,5.99159884]
[1761954408219,0.72,187.94,187.91,5.99159884]
[1761954408403,3.98483986,187.93,187.91,5.99159884]
[1761954408606,2.68154711,187.94,187.91,5.99159884]
[1761954408800,3.98483986,187.93,187.91,0.67]
[1761954409003,2.68154711,187.94,187.91,0.67]
[1761954409207,3.98487442,187.93,187.91,0.67]
[1761954409513,2.68154711,187.94,187.91,0.67]
[1761954409697,3.98592537,187.93,187.91,0.67]
[1761954409899,2.68154711,187.94,187.91,0.67]
[1761954410223,3.98592577,187.93,187.91,0.67]
[1761954410410,3.98713362,187.92,187.91,0.67]
[1761954412715,3.98713362,187.92,187.91,5.99169655]
[1761954418230,22.55354711,187.97,187.91,5.99169655]
[1761954418529,20.592,187.94,187.92,0.72]
[1761954418699,3.99166633,187.93,187.92,0.72]
[1761954420539,3.99166633,187.93,187.92,6.04141336]
[1761954421328,1.96154711,187.99,187.92,8.00296047]
[1761954421543,3.99130248,187.98,187.94,1.96154711]
[1761954421742,3.99130248,187.97,187.95,0.72]
[1761954421921,3.99130248,187.96,187.95,0.72]
[1761954422515,4.69130248,187.96,187.92,43.82136751]
[1761954422729,20.592,188.0,187.93,0.72]
[1761954422730,3.99130248,187.95,187.93,0.72]
[1761954422936,0.7,187.98,187.93,2.68154711]
[1761954423129,3.98999674,187.97,187.94,0.72]
[1761954423442,3.98894471,187.96,187.94,0.72]
[1761954423644,2.66154711,187.99,187.94,0.72]
[1761954423840,4.68894511,187.98,187.94,0.72]
[1761954424025,3.98894511,187.97,187.94,0.72]
[1761954424341,2.66154711,187.98,187.94,0.72]
[1761954424543,3.98818557,187.97,187.95,5.32056397]
[1761954424749,2.66154711,187.98,187.95,5.32056397]
[1761954425046,3.98818557,187.97,187.95,6.04056397]
[1761954425233,1.96154711,187.99,187.95,5.32056397]
[1761954425439,3.98737761,187.98,187.96,0.72]
[1761954425747,3.98737761,187.97,187.96,0.72]
[1761954426741,3.98737761,187.97,187.96,8.00182802]
[1761954426943,6.93176784,188.01,187.96,8.00182802]
[1761954427242,3.98600181,188.0,187.98,1.96154711]
[1761954427542,6.93176784,188.01,187.98,1.96154711]
[1761954427839,6.93176784,188.01,187.99,0.72]
[1761954428739,6.93176784,188.01,188.0,5.31914893]
[1761954428945,10.9140588,188.01,188.0,5.31914893]
[1761954429643,10.9140588,188.01,187.99,6.03936684]
[1761954429846,0.7,188.0,187.98,12.25141435]
[1761954430040,0.7,188.0,187.98,5.31964651]
[1761954430247,1.96154711,187.99,187.97,6.93176784]
[1761954430555,0.7,188.0,187.95,0.72]
[1761954430556,1.96154711,187.98,187.95,0.72]
[1761954430853,2.66154711,187.99,187.96,0.72]
[1761954431854,2.66154711,187.99,187.95,22.03577802]
[1761954434937,2.66154711,187.99,187.96,0.72]
[1761954435338,2.66154711,187.99,187.95,22.03577802]
[1761954438751,2.66154711,187.99,187.96,6.04021394]
[1761954438952,1.96154711,188.0,187.96,6.04021394]
[1761954439130,3.97782325,187.99,187.97,0.72]
[1761954439330,1.96154711,188.0,187.97,0.72]
[1761954439538,3.97763608,187.99,187.97,0.72]
[1761954439829,2.63154711,188.0,187.97,0.72]
[1761954440243,1.96154711,188.0,187.96,22.03552198]
[1761954440444,2.63154711,187.99,187.96,21.31552198]
[1761954440753,2.63154711,187.99,187.95,21.31587201]
[1761954440929,0.67,187.98,187.95,21.31587201]
[1761954441125,0.67,187.98,187.95,22.03587201]
[1761954442357,1.96154711,187.99,187.95,22.03587201]
[1761954442652,0.67,187.99,187.96,6.04006031]
[1761954442832,2.63154711,188.0,187.96,6.04006031]
[1761954443032,4.64782151,187.99,187.96,6.04006031]
[1761954443240,0.67,187.99,187.96,6.04006031]
[1761954444352,0.67,187.99,187.96,5.32006031]
[1761954446435,0.67,187.99,187.96,5.97006031]
[1761954447837,2.63154711,187.99,187.96,5.97006031]
[1761954449357,3.98105338,187.98,187.96,5.97006031]
[1761954449532,2.63154711,187.99,187.96,5.97006031]
[1761954449731,3.98175132,187.98,187.96,5.97006031]
[1761954449942,2.63154711,187.99,187.96,5.97006031]
[1761954450241,3.98175132,187.98,187.96,5.97006031]
[1761954450441,2.63154711,187.99,187.96,5.97006031]
[1761954450643,3.98214239,187.98,187.97,0.65]
[1761954451463,3.98239864,187.98,187.96,0.65]
[1761954451644,2.68154711,188.0,187.96,0.65]
[1761954451850,4.70239905,187.99,187.97,5.31999787]
[1761954452054,3.98239905,187.98,187.97,5.31999787]
[1761954452656,3.98239905,187.98,187.96,9.95261277]
[1761954452858,2.68154711,187.99,187.96,9.95261277]
[1761954453063,3.98274905,187.98,187.96,9.95261277]
[1761954453264,2.68154711,188.0,187.97,0.65]
[1761954453451,3.98314163,187.99,187.97,0.65]
[1761954453653,3.98314163,187.98,187.97,0.65]
[1761954453869,3.98314163,187.98,187.97,5.96999787]
[1761954454550,8.89331495,188.01,187.97,5.96999787]
[1761954454749,3.98334886,188.0,187.98,0.65]
[1761954454962,3.98334886,187.99,187.98,0.65]
[1761954455371,3.98372188,187.99,187.98,0.65]
[1761954455575,6.93176784,188.01,187.98,0.65]
[1761954455772,3.98357049,188.0,187.98,0.65]
[1761954456070,8.89331495,188.01,187.99,5.31943188]
[1761954456253,3.98357009,188.0,187.99,5.31943188]
[1761954457948,3.98357009,188.0,187.99,5.96943188]
[1761954458146,6.93176784,188.01,187.99,7.93097899]
[1761954458351,6.93176784,188.01,188.0,2.61154711]
[1761954458880,6.93176784,188.01,188.0,12.4003748]
[1761954459047,6.93176784,188.01,188.0,66.88971523]
[1761954460161,6.93176784,188.01,188.0,72.20886416]
[1761954466081,0.72,188.06,188.01,9.78882769]
[1761954466269,3.9800321,188.05,188.01,50.9003748]
[1761954466579,1.96154712,188.07,188.04,1.96154711]
[1761954466580,1e-08,188.07,188.04,1.96154711]
[1761954466961,9.76893511,188.07,188.04,2.61154711]
[1761954467167,9.76893511,188.07,188.05,9.78882769]
[1761954467556,9.04893511,188.07,188.05,9.78882769]
[1761954467951,9.76893511,188.07,188.05,9.78882769]
[1761954468286,0.72,188.06,188.05,15.10641095]
[1761954468656,9.04893511,188.07,188.05,15.10641095]
[1761954468877,9.76893511,188.07,188.05,15.10641095]
[1761954469185,9.76893511,188.07,188.05,5.31758326]
[1761954469361,9.76893511,188.07,188.06,15.10641095]
[1761954469896,33.42112558,188.07,188.06,15.10641095]
[1761954470061,37.39647262,188.07,188.01,5.31861096]
[1761954470261,3.06019047,188.05,188.01,5.31861096]
[1761954470595,3.06019047,188.05,188.02,15.10641095]
[1761954470755,3.78019047,188.04,188.02,15.10641095]
[1761954472360,3.06019047,188.04,188.02,15.10641095]
[1761954472575,0.72,188.03,188.02,15.10641095]
[1761954472886,0.72,188.03,188.0,5.31910677]
[1761954472887,3.78019047,188.03,188.0,5.31910677]
[1761954473184,3.78019047,188.03,188.01,15.99189743]
[1761954473357,0.72,188.02,188.01,15.99189743]
[1761954479676,3.78019047,188.02,188.01,15.99189743]
[1761954479988,7.75567696,188.02,187.96,5.32001652]
[1761954480186,20.592,188.03,187.94,14.00206036]
[1761954480187,3.06019047,187.98,187.97,15.99189743]
[1761954480390,3.06019047,187.98,187.92,5.32138905]
[1761954480592,3.06019047,187.96,187.92,5.32138905]
[1761954480898,3.06019047,187.96,187.93,15.99189743]
[1761954481201,0.72,187.95,187.93,15.99189743]
[1761954481687,3.78019047,187.95,187.93,15.99189743]
[1761954481879,0.72,187.94,187.9,0.7]
[1761954482076,0.72,187.94,187.91,15.99189743]
[1761954482290,3.78019047,187.94,187.91,15.99189743]
[1761954482796,0.72,187.93,187.91,15.99189743]
[1761954483003,0.72,187.93,187.9,5.32197664]
[1761954483888,0.72,187.93,187.89,0.7]
[1761954484566,3.06019047,187.92,187.88,5.32229104]
[1761954484766,3.06019047,187.92,187.86,9.08302943]
[1761954484982,0.72,187.91,187.86,8.38302943]
[1761954485189,0.72,187.91,187.87,0.7]
[1761954486075,0.72,187.91,187.87,6.02272161]
[1761954486278,0.72,187.91,187.88,0.7]
[1761954487792,0.72,187.92,187.88,0.7]
[1761954487988,3.78019047,187.92,187.88,0.7]
[1761954488603,3.78019047,187.92,187.88,6.02236779]
[1761954488894,0.72,187.91,187.88,6.02236779]
[1761954489667,0.72,187.91,187.87,5.32281233]
[1761954489888,3.78019047,187.91,187.87,6.02281233]
[1761954490664,0.72,187.9,187.87,5.32281233]
[1761954491217,0.72,187.9,187.85,46.88343678]
[1761954491393,0.72,187.9,187.86,0.7]
[1761954492207,3.06019047,187.89,187.84,38.5]
[1761954492381,3.06019047,187.87,187.83,5.52395816]
[1761954492694,3.06019047,187.87,187.84,0.7]
[1761954492866,3.78019047,187.87,187.84,0.7]
[1761954493066,0.72,187.87,187.84,0.7]
[1761954493265,3.06019047,187.88,187.84,0.7]
[1761954493266,3.78019047,187.88,187.84,0.7]
[1761954493489,0.72,187.88,187.84,0.7]
[1761954493791,3.06019047,187.89,187.84,6.02363057]
[1761954493973,3.78019047,187.88,187.84,6.02363057]
[1761954494169,3.78019047,187.88,187.84,0.7]
[1761954494569,3.78019047,187.87,187.83,0.2]
[1761954494775,3.06019047,187.85,187.83,0.2]
[1761954495191,3.78019047,187.85,187.83,0.2]
[1761954495489,3.06019047,187.85,187.83,0.2]
[1761954495887,3.78019047,187.85,187.83,0.2]
[1761954496083,3.06019047,187.85,187.83,0.2]
[1761954496395,20.592,187.82,187.8,0.2]
[1761954496597,3.06019047,187.81,187.8,0.2]
[1761954496811,3.78019047,187.81,187.8,0.2]
[1761954497702,24.37219047,187.81,187.8,0.2]
[1761954503602,29.69672058,187.81,187.8,0.2]
[1761954504603,24.37219047,187.81,187.8,0.2]
[1761954504808,29.69672058,187.81,187.8,0.2]
[1761954508313,3.78019047,187.81,187.8,0.2]
[1761954508628,29.69672058,187.81,187.8,0.2]
[1761954510944,24.37219047,187.81,187.8,0.2]
[1761954516336,28.30607132,187.81,187.8,0.2]
[1761954517837,24.32219047,187.81,187.8,0.2]
[1761954519139,23.65219047,187.81,187.8,0.2]
[1761954520432,27.59410425,187.81,187.8,0.2]
[1761954521937,27.59410425,187.81,187.8,0.85]
[1761954523110,23.65219047,187.81,187.8,0.85]
[1761954523315,7.01133353,187.81,187.8,0.85]
[1761954523743,3.06019047,187.81,187.8,0.85]
[1761954524025,23.65219047,187.81,187.8,0.85]
[1761954524230,27.60318325,187.81,187.8,0.85]
[1761954531415,5.91559688,187.81,187.8,0.85]
[1761954532739,6.58559688,187.81,187.8,0.2]
[1761954533247,20.592,187.79,187.78,0.2]
[1761954533433,35.67858116,187.79,187.78,0.2]
[1761954533629,36.34858116,187.79,187.78,0.2]
[1761954534549,35.67858116,187.79,187.78,0.2]
[1761954535529,36.39858116,187.79,187.78,0.2]
[1761954536852,35.67858116,187.79,187.78,0.2]
[1761954538756,36.39858116,187.79,187.78,0.2]
[1761954540464,41.72367834,187.79,187.78,0.2]
[1761954541639,36.39858116,187.79,187.78,0.2]
[1761954545439,35.67858116,187.79,187.78,0.2]
[1761954549144,35.67858116,187.79,187.78,0.86]
[1761954551453,35.67858116,187.79,187.78,0.2]
[1761954552355,35.67858116,187.79,187.78,0.86]
[1761954552862,35.67858116,187.79,187.78,0.2]
[1761954553762,36.39858116,187.79,187.78,0.2]
[1761954557369,35.67858116,187.79,187.78,0.2]
[1761954558043,36.39858116,187.79,187.78,0.2]
[1761954558748,41.72367834,187.79,187.75,0.2]
[1761954558965,22.5566041,187.76,187.75,0.2]
[1761954559176,27.17759688,187.76,187.75,0.2]
[1761954560249,26.50759688,187.76,187.75,0.2]
[1761954560770,27.17759688,187.76,187.75,0.2]
[1761954560972,24.54299278,187.76,187.75,0.87]
[1761954561293,26.50759688,187.76,187.75,0.2]
[1761954563744,40.36196129,187.76,187.75,0.2]
[1761954564141,35.03601328,187.76,187.75,0.2]
[1761954564375,26.50759688,187.76,187.75,0.2]
[1761954564886,26.50759688,187.76,187.75,0.87]
[1761954565165,26.50759688,187.76,187.75,0.2]
[1761954569863,27.21759688,187.76,187.75,0.2]
[1761954570471,32.54354489,187.76,187.75,0.2]
[1761954570672,40.40196129,187.76,187.75,0.2]
[1761954572874,9.8230205,187.75,187.74,0.2]
[1761954573180,14.48401328,187.75,187.73,0.2]
[1761954573369,14.48401328,187.74,187.73,0.2]
[1761954575373,19.81052867,187.74,187.73,0.2]
[1761954576363,19.85049473,187.74,187.73,0.2]
[1761954580192,3.99095884,187.74,187.73,0.2]
[1761954580391,13.81397934,187.74,187.73,0.2]
[1761954582392,14.52397934,187.74,187.73,0.2]
[1761954582894,19.85049473,187.74,187.73,0.2]
[1761954583274,19.84713765,187.74,187.73,0.2]
[1761954586078,19.84713765,187.74,187.72,0.2]
[1761954586390,6.66220586,187.73,187.72,0.2]
[1761954586694,5.95220586,187.73,187.72,0.2]
[1761954587280,11.27900498,187.73,187.72,0.2]
[1761954591325,12.38843417,187.73,187.72,0.2]
[1761954592794,7.06163505,187.73,187.72,0.2]
[1761954599612,13.04843417,187.73,187.72,0.2]
[1761954600709,13.04843417,187.73,187.71,0.2]
[1761954600910,7.72163505,187.72,187.7,0.2]
[1761954601085,27.65363505,187.71,187.7,0.2]
[1761954601286,28.31363505,187.71,187.7,0.2]
[1761954603103,32.98100173,187.71,187.7,0.2]
[1761954603405,27.65363505,187.71,187.7,0.2]
[1761954603600,27.65363505,187.71,187.7,0.88]
[1761954603808,27.65363505,187.71,187.7,0.2]
[1761954606413,33.64100173,187.71,187.7,0.2]
[1761954606789,35.77758266,187.71,187.7,0.2]
[1761954608398,35.11758266,187.71,187.7,0.2]
[1761954611512,32.98100173,187.71,187.7,0.2]
[1761954614323,36.56989782,187.71,187.7,0.2]
[1761954621513,37.24989782,187.71,187.7,0.2]
[1761954621710,20.592,187.67,187.65,10.15789094]
[1761954621917,10.13566834,187.66,187.65,10.15789094]
[1761954625521,16.15445444,187.66,187.65,10.15789094]
[1761954626228,15.46445444,187.66,187.65,10.15789094]
[1761954627108,16.15445444,187.66,187.65,10.15789094]
[1761954627337,15.46445444,187.66,187.65,10.15789094]
[1761954630033,16.15445444,187.66,187.65,10.15789094]
[1761954630332,16.15445444,187.66,187.64,0.2]
[1761954630533,10.13566834,187.65,187.64,0.2]
[1761954631439,10.13253706,187.65,187.64,0.2]
[1761954635238,15.46160713,187.65,187.64,0.2]
[1761954635833,10.13253706,187.65,187.64,0.2]
[1761954637942,15.46160713,187.65,187.64,0.2]
[1761954638237,17.59887303,187.65,187.64,0.2]
[1761954638631,15.46160713,187.65,187.64,0.2]
[1761954649235,36.05360713,187.65,187.64,0.2]
[1761954649748,30.72453706,187.65,187.64,0.2]
[1761954651428,10.13253706,187.65,187.64,0.2]
[1761954652745,15.46160713,187.65,187.64,0.2]
[1761954653358,19.15784755,187.65,187.64,0.2]
[1761954654449,13.82877748,187.65,187.64,0.2]
[1761954654831,39.74984755,187.65,187.64,0.2]
[1761954655151,19.15784755,187.65,187.64,0.2]
[1761954655548,13.82877748,187.65,187.64,0.91]
[1761954656241,3.98447048,187.65,187.64,0.2]
[1761954656558,13.82877748,187.65,187.64,0.91]
[1761954661532,5.95333188,187.65,187.64,0.91]
[1761954661730,7.92219328,187.65,187.64,0.91]
[1761954661934,20.592,187.62,187.61,0.2]
[1761954662136,41.44503889,187.62,187.61,0.91]
[1761954662335,41.44503889,187.62,187.61,0.2]
[1761954663051,45.81672096,187.62,187.61,0.2]
[1761954663359,46.48672096,187.62,187.61,0.2]
[1761954663748,45.81672096,187.62,187.61,0.2]
[1761954664055,47.95421528,187.62,187.61,0.2]
[1761954666026,48.62421528,187.62,187.61,0.2]
[1761954666951,47.95421528,187.62,187.61,0.2]
[1761954667330,51.5416001,187.62,187.61,0.2]
[1761954667527,39.87113445,187.62,187.61,0.2]
[1761954667728,43.58253321,187.62,187.61,0.2]
[1761954667924,43.58253321,187.62,187.61,0.91]
[1761954668450,43.58253321,187.62,187.61,0.2]
[1761954668647,43.58253321,187.62,187.61,0.91]
[1761954669443,38.25261103,187.62,187.61,0.91]
[1761954670556,43.58253321,187.62,187.61,0.2]
[1761954670945,43.58446806,187.62,187.61,0.2]
[1761954671347,47.17227322,187.62,187.61,0.2]
[1761954671553,45.0347789,187.62,187.61,0.2]
[1761954672242,45.0347789,187.62,187.59,0.71]
[1761954672453,45.0347789,187.62,187.56,0.2]
[1761954672454,20.592,187.58,187.56,2.53760855]
[1761954672663,5.95526673,187.57,187.56,2.53760855]
[1761954672837,3.98640533,187.57,187.56,2.53760855]
[1761954673162,5.95526673,187.57,187.56,2.53760855]
[1761954673467,5.95526673,187.57,187.56,3.24760855]
[1761954674367,5.95526673,187.57,187.56,0.91]
[1761954686277,5.95526673,187.57,187.56,0.87]
[1761954694153,3.98640533,187.57,187.56,0.87]
[1761954694356,5.95526673,187.57,187.56,0.87]
[1761954694578,5.95526673,187.57,187.56,6.20274021]
[1761954701472,5.95526673,187.57,187.56,0.2]
[1761954701988,5.95662909,187.57,187.56,0.2]
[1761954703991,5.95662909,187.57,187.56,0.87]
[1761954707890,6.62662909,187.57,187.56,0.2]
[1761954708080,14.50207469,187.57,187.56,0.2]
[1761954708906,6.62662909,187.57,187.56,0.2]
[1761954709292,5.95662909,187.57,187.56,0.2]
[1761954713284,27.65818707,187.57,187.56,0.2]
[1761954719592,27.65818707,187.57,187.56,0.88]
[1761954720200,24.57976769,187.57,187.56,0.2]
[1761954720399,27.65818707,187.57,187.56,0.2]
[1761954722108,7.06618707,187.57,187.56,0.88]
[1761954722483,7.06618707,187.57,187.56,9.83662909]
[1761954722687,3.98776769,187.57,187.56,15.1682563]
[1761954725223,3.98776769,187.57,187.56,9.83662909]
[1761954725908,7.06618707,187.57,187.56,9.83662909]
[1761954729024,3.98776769,187.57,187.56,9.83662909]
[1761954731128,7.06618707,187.57,187.56,9.83662909]
[1761954734821,7.06618707,187.57,187.56,15.1682563]
[1761954735006,3.98776769,187.57,187.56,15.1682563]
[1761954735207,12.64820421,187.62,187.56,31.57574371]
[1761954735422,3.99254518,187.61,187.57,0.68]
[1761954735617,3.99254518,187.6,187.57,3.75841938]
[1761954735913,3.99254518,187.59,187.57,3.75841938]
[1761954736109,9.56978483,187.62,187.58,0.68]
[1761954736314,3.99156113,187.61,187.58,13.32820421]
[1761954736510,3.99156113,187.6,187.59,5.33077456]
[1761954736707,9.56978483,187.62,187.59,32.20495803]
[1761954736927,3.99167283,187.61,187.6,3.75841938]
[1761954737125,9.56978483,187.62,187.6,0.68]
[1761954737435,9.56978483,187.62,187.61,0.68]
[1761954737734,13.55947974,187.62,187.61,0.68]
[1761954738138,13.55947974,187.62,187.61,16.70435702]
[1761954739238,13.55947974,187.62,187.61,22.03456329]
[1761954740241,9.56978483,187.62,187.61,22.03456329]
[1761954750134,13.35820421,187.62,187.61,16.02435702]
[1761954750333,12.64820421,187.62,187.61,16.02435702]
[1761954751435,12.64820421,187.62,187.61,16.74435702]
[1761954753243,12.64820421,187.62,187.61,16.02435702]
[1761954754842,12.64820421,187.62,187.61,16.74435702]
[1761954757528,12.64820421,187.62,187.61,16.02435702]
[1761954761247,16.62826116,187.62,187.61,16.02435702]
[1761954766846,17.33826116,187.62,187.61,16.02435702]
[1761954768155,17.33826116,187.62,187.57,6.05132554]
[1761954768364,3.07841938,187.6,187.57,5.33132554]
[1761954768654,3.07841938,187.6,187.58,16.02692523]
[1761954768842,3.07841938,187.6,187.58,16.74692523]
[1761954769035,3.07841938,187.59,187.58,16.74692523]
[1761954769241,3.07841938,187.59,187.58,0.72]
[1761954769443,3.07841938,187.59,187.58,10.28978483]
[1761954771761,3.07841938,187.6,187.58,10.28978483]
[1761954771952,3.07841938,187.61,187.59,0.72]
[1761954772264,3.98704239,187.6,187.59,0.72]
[1761954772459,12.64820421,187.62,187.6,14.90075942]
[1761954772662,3.98782209,187.61,187.6,14.90075942]
[1761954772845,3.98782209,187.61,187.6,15.62075942]
[1761954773663,7.06624147,187.61,187.6,15.62075942]
[1761954775354,5.95622547,187.61,187.6,15.62075942]
[1761954779068,5.95622547,187.61,187.6,14.90075942]
[1761954780342,5.95622547,187.61,187.6,15.59075942]
[1761954780743,5.95622547,187.61,187.6,14.90075942]
[1761954781149,26.55480974,187.61,187.6,14.90075942]
[1761954782068,20.592,187.59,187.58,0.69]
[1761954782252,24.58640636,187.59,187.58,0.69]
[1761954782568,24.58640636,187.59,187.58,16.71778148]
[1761954785675,6.64280974,187.59,187.58,16.02778148]
[1761954791489,6.64280974,187.59,187.56,0.89]
[1761954791688,1.96840338,187.57,187.56,0.89]
[1761954791845,14.1169339,187.57,187.56,0.89]
[1761954792250,14.1169339,187.57,187.56,16.91949426]
[1761954796378,12.14853052,187.57,187.56,16.91949426]
[1761954798985,14.1169339,187.57,187.56,16.91949426]
[1761954799787,12.14853052,187.57,187.56,16.91949426]
[1761954800986,12.14853052,187.57,187.56,22.25112147]
[1761954800987,8.15412416,187.57,187.56,22.25112147]
[1761954801383,12.14757087,187.57,187.56,22.25112147]
[1761954810485,12.14757087,187.57,187.56,16.91949426]
[1761954810879,14.11597425,187.57,187.56,16.91949426]
[1761954812171,12.14757087,187.57,187.56,16.91949426]
[1761954816370,12.14757087,187.57,187.56,22.25112147]
[1761954819494,12.14757087,187.57,187.56,16.91949426]
[1761954821088,12.14757087,187.57,187.56,22.25112147]
[1761954821284,12.1517152,187.57,187.56,22.25112147]
[1761954821484,8.15412416,187.57,187.56,22.25112147]
[1761954823984,12.15235929,187.57,187.56,22.25112147]
[1761954841503,12.15235929,187.57,187.56,35.11612275]
[1761954842398,12.15235929,187.57,187.56,73.61612275]
[1761954843017,12.15235929,187.57,187.56,70.53994916]
[1761954858225,12.15235929,187.57,187.56,69.84994916]
[1761954858403,12.15235929,187.57,187.56,70.55994916]
[1761954864430,12.14887277,187.57,187.56,70.55994916]
[1761954882962,12.14811687,187.57,187.56,70.55994916]
[1761954893246,12.81811687,187.57,187.56,54.72949426]
[1761954893447,15.89429046,187.57,187.56,54.72949426]
[1761954893664,12.81811687,187.57,187.56,54.72949426]
[1761954894036,12.81811687,187.57,187.56,60.06112147]
[1761954894345,12.14811687,187.57,187.56,60.06112147]
[1761954895160,12.14811687,187.57,187.56,16.22949426]
[1761954895347,12.14811687,187.57,187.56,22.27112147]
[1761954895870,12.14811687,187.57,187.56,21.56112147]
[1761954896769,15.91429046,187.57,187.56,16.22949426]
[1761954897452,14.80750915,187.57,187.56,16.22949426]
[1761954902842,12.83811687,187.57,187.56,16.22949426]
[1761954903049,14.80750915,187.57,187.56,16.22949426]
[1761954906751,12.14811687,187.57,187.56,16.22949426]
[1761954907078,14.80750915,187.57,187.56,16.22949426]
[1761954912578,12.14811687,187.57,187.56,22.27112147]
[1761954913079,12.14811687,187.57,187.56,21.56112147]
[1761954913573,3.99399271,187.57,187.56,21.56112147]
[1761954914276,3.99399271,187.57,187.56,16.22949426]
[1761954914461,6.65338499,187.57,187.56,16.22949426]
[1761954920784,6.65338499,187.57,187.56,0.2]
[1761954921192,14.53095411,187.57,187.56,0.2]